bitfinex/quotes_BTCUSD_20250523
["timestamp","ask_amount","ask_price","bid_price","bid_amount"]
[1748001334204,0.28625626,109540.0,109530.0,0.1]
[1748001334419,0.35035626,109540.0,109530.0,0.1]
[1748001335551,0.42351918,109540.0,109530.0,0.1]
[1748001335765,0.35035626,109540.0,109530.0,0.1]
[1748001336666,0.34535626,109540.0,109530.0,0.1]
[1748001337127,0.35035626,109540.0,109530.0,0.1]
[1748001337995,0.34535626,109540.0,109530.0,0.1]
[1748001338221,0.1967107,109540.0,109530.0,0.44]
[1748001338435,0.1967107,109540.0,109530.0,0.88953882]
[1748001338648,0.014129,109540.0,109530.0,0.709733]
[1748001338870,0.1967107,109540.0,109530.0,0.709733]
[1748001339092,0.1967107,109540.0,109530.0,1.15927182]
[1748001339340,0.1967107,109540.0,109530.0,0.88953882]
[1748001339543,0.20583945,109540.0,109530.0,1.12380182]
[1748001339761,0.35228501,109540.0,109530.0,0.44]
[1748001339965,0.40578533,109540.0,109530.0,0.44]
[1748001340177,0.35528501,109540.0,109530.0,0.44]
[1748001340629,0.29038501,109540.0,109530.0,0.44]
[1748001341051,0.29038501,109540.0,109530.0,0.88953882]
[1748001341052,0.20583945,109540.0,109530.0,0.88953882]
[1748001341261,0.21496836,109540.0,109530.0,1.5649851]
[1748001341483,0.18271815,109550.0,109540.0,0.54996795]
[1748001341484,0.00015312,109550.0,109540.0,0.54996795]
[1748001341699,0.00015312,109550.0,109540.0,2.82073333]
[1748001341975,0.00015312,109550.0,109540.0,2.88353333]
[1748001342200,0.19160567,109600.0,109590.0,0.34]
[1748001342430,0.28130455,109600.0,109590.0,0.660078]
[1748001342650,0.00015332,109600.0,109590.0,0.660078]
[1748001342905,0.20088298,109600.0,109590.0,0.660078]
[1748001343125,0.18263507,109600.0,109580.0,0.97205387]
[1748001343345,0.20088266,109600.0,109590.0,1.01255986]
[1748001343556,0.00927699,109600.0,109590.0,1.00667056]
[1748001343782,0.20088282,109600.0,109590.0,0.529758]
[1748001344438,0.20188282,109600.0,109590.0,0.529758]
[1748001344668,0.01940024,109600.0,109590.0,0.529758]
[1748001344878,0.32262563,109600.0,109590.0,0.34]
[1748001345089,0.32262563,109600.0,109550.0,0.42271678]
[1748001345090,0.20080262,109560.0,109550.0,0.42271678]
[1748001345301,0.20080262,109560.0,109550.0,0.02879678]
[1748001345518,0.29034818,109560.0,109550.0,0.02879678]
[1748001345741,0.18254255,109580.0,109550.0,1.0191562]
[1748001345947,0.20992977,109560.0,109550.0,0.20082119]
[1748001346185,0.20992977,109560.0,109550.0,1.23626493]
[1748001346394,0.20992977,109560.0,109550.0,2.02631543]
[1748001346601,0.01825357,109560.0,109550.0,2.02631543]
[1748001346809,0.02738082,109560.0,109550.0,2.03544309]
[1748001347065,0.04563498,109560.0,109550.0,2.03544309]
[1748001347277,0.21905669,109560.0,109550.0,0.94160387]
[1748001347491,0.20992978,109560.0,109550.0,1.40027077]
[1748001347698,0.02838082,109560.0,109550.0,1.40939818]
[1748001347911,0.19267528,109560.0,109550.0,0.93247571]
[1748001348119,0.20180278,109560.0,109550.0,0.74991068]
[1748001348377,0.1926757,109560.0,109550.0,0.74991068]
[1748001348580,0.1926757,109560.0,109550.0,1.1994495]
[1748001348801,0.20180278,109560.0,109550.0,1.40027078]
[1748001349013,0.21093019,109560.0,109550.0,1.40027094]
[1748001349234,0.001,109560.0,109550.0,1.41852669]
[1748001349441,0.00912358,109600.0,109590.0,0.54987248]
[1748001349669,0.20985233,109600.0,109590.0,1.45960982]
[1748001349873,0.20985233,109600.0,109590.0,0.34]
[1748001349874,0.36343782,109600.0,109590.0,0.34]
[1748001350102,0.20072934,109600.0,109590.0,0.89852]
[1748001350314,0.20072934,109600.0,109590.0,0.5767]
[1748001350556,0.20072934,109600.0,109590.0,0.4978]
[1748001350799,0.20072934,109600.0,109570.0,0.20991012]
[1748001350800,0.20075755,109590.0,109580.0,1.748115]
[1748001351049,0.20075755,109590.0,109580.0,0.884354]
[1748001351273,0.19162307,109590.0,109580.0,1.53465894]
[1748001351498,0.20987224,109590.0,109580.0,1.53465894]
[1748001351722,0.20074782,109590.0,109580.0,1.52553353]
[1748001351954,0.20074782,109590.0,109580.0,1.54378461]
[1748001352186,0.20987265,109590.0,109580.0,1.54378461]
[1748001352437,0.20588298,109600.0,109590.0,0.19162315]
[1748001352666,0.19162315,109590.0,109580.0,0.18313902]
[1748001352889,0.19462315,109590.0,109580.0,0.80393402]
[1748001353362,0.02752406,109600.0,109590.0,0.20987214]
[1748001353620,0.22312973,109600.0,109590.0,1.58801963]
[1748001353849,0.20488315,109600.0,109590.0,0.7835634]
[1748001354093,0.20987241,109590.0,109580.0,0.82431839]
[1748001354324,0.01825075,109580.0,109570.0,0.65944893]
[1748001354578,0.1824984,109590.0,109570.0,0.65944893]
[1748001354579,0.0303735,109590.0,109580.0,0.2007663]
[1748001354798,0.003,109590.0,109580.0,2.44003853]
[1748001355083,0.2128719,109590.0,109580.0,1.69671512]
[1748001355303,0.0303735,109590.0,109580.0,1.71496569]
[1748001355763,0.21263374,109590.0,109580.0,1.70584053]
[1748001355998,0.31130413,109590.0,109580.0,0.967238]
[1748001356238,0.1916728,109570.0,109560.0,0.19167578]
[1748001356486,0.00912591,109570.0,109560.0,2.40027651]
[1748001356720,0.20991019,109570.0,109560.0,2.2421076]
[1748001356954,0.20991019,109570.0,109560.0,1.27403085]
[1748001357179,0.20991086,109570.0,109560.0,0.76463053]
[1748001357419,0.20991086,109570.0,109560.0,0.75550362]
[1748001357648,0.20078428,109570.0,109560.0,0.75550362]
[1748001357888,0.01825207,109570.0,109560.0,1.21416935]
[1748001358129,0.18263652,109600.0,109590.0,0.34]
[1748001358359,0.19164071,109580.0,109570.0,0.99032336]
[1748001358597,0.41784919,109580.0,109570.0,0.657676]
[1748001358859,0.20082094,109550.0,109540.0,0.01425872]
[1748001359108,0.20082094,109550.0,109540.0,0.45994872]
[1748001359342,0.20082094,109550.0,109540.0,0.44753172]
[1748001359580,0.00912766,109550.0,109540.0,1.09790998]
[1748001359806,0.20082094,109550.0,109540.0,1.38658524]
[1748001360030,0.19167723,109560.0,109550.0,0.34]
[1748001360257,0.19167723,109560.0,109550.0,0.50771568]
[1748001360485,0.20080448,109560.0,109550.0,0.50771568]
[1748001360713,0.20080448,109560.0,109550.0,0.34051168]
[1748001360965,0.29035004,109560.0,109550.0,0.00051168]
[1748001361497,0.32325004,109560.0,109550.0,0.00051168]
[1748001361733,0.35465004,109560.0,109550.0,0.00051168]
[1748001362614,0.35565004,109560.0,109550.0,0.00051168]
[1748001362878,0.32425004,109560.0,109550.0,0.00051168]
[1748001363089,0.35525004,109560.0,109550.0,0.00051168]
[1748001363366,0.35525004,109560.0,109530.0,0.1]
[1748001363367,0.26543927,109540.0,109530.0,0.06142212]
[1748001363595,0.47384775,109540.0,109530.0,0.06142212]
[1748001363821,0.47384775,109540.0,109490.0,0.02879678]
[1748001363822,0.20091265,109500.0,109490.0,0.02879678]
[1748001364055,0.29045821,109500.0,109490.0,0.02879678]
[1748001364510,0.29045821,109500.0,109490.0,0.55639978]
[1748001364731,0.29045821,109500.0,109490.0,1.5512539]
[1748001364950,0.11694214,109500.0,109490.0,1.8994129]
[1748001365177,0.1825817,109540.0,109490.0,1.02531082]
[1748001365454,0.00912841,109540.0,109530.0,0.82243882]
[1748001365678,0.00912841,109540.0,109530.0,0.95102682]
[1748001365679,0.20083945,109540.0,109530.0,0.95102682]
[1748001365915,0.20083945,109540.0,109530.0,0.3729]
[1748001366134,0.20083945,109540.0,109530.0,0.34]
[1748001366568,0.29038501,109540.0,109530.0,0.34]
[1748001366793,0.29038501,109540.0,109530.0,0.34015312]
[1748001367003,0.20083945,109540.0,109530.0,1.00772494]
[1748001367437,0.20083945,109540.0,109530.0,0.34015312]
[1748001367655,0.20383945,109540.0,109530.0,0.34015312]
[1748001367866,0.32568501,109540.0,109530.0,0.34015312]
[1748001368715,0.29338501,109540.0,109530.0,0.34015312]
[1748001369213,0.20383945,109540.0,109530.0,0.34015312]
[1748001369880,0.32388501,109540.0,109530.0,0.34015312]
[1748001370090,0.32088501,109540.0,109530.0,0.34015312]
[1748001370530,0.32188501,109540.0,109530.0,0.34015312]
[1748001370748,0.32188501,109540.0,109530.0,0.00015312]
[1748001371615,0.42564793,109540.0,109530.0,0.00015312]
[1748001372044,0.42464793,109540.0,109530.0,0.00015312]
[1748001372265,0.42764793,109540.0,109530.0,0.00015312]
[1748001372483,0.35448501,109540.0,109530.0,0.00015312]
[1748001372908,0.32088501,109540.0,109530.0,0.00015312]
[1748001373133,0.32488501,109540.0,109530.0,0.00015312]
[1748001374002,0.01826257,109510.0,109500.0,0.0001]
[1748001374241,0.32123985,109510.0,109500.0,0.0001]
[1748001374699,0.35003985,109510.0,109500.0,0.0001]
[1748001375135,0.86274159,109510.0,109500.0,0.0001]
[1748001375354,0.50272428,109510.0,109500.0,0.0001]
[1748001375583,0.50272428,109510.0,109500.0,0.0011]
[1748001375806,0.33123985,109510.0,109500.0,0.0011]
[1748001376032,0.32950242,109510.0,109500.0,0.0011]
[1748001376250,0.31950242,109510.0,109500.0,0.0001]
[1748001376473,0.32350242,109510.0,109500.0,0.0001]
[1748001377190,0.32350242,109510.0,109500.0,0.05916028]
[1748001377613,0.32350242,109510.0,109500.0,0.01995332]
[1748001377832,0.37411562,109510.0,109500.0,0.01685738]
[1748001378053,0.32350242,109510.0,109500.0,0.0070452]
[1748001378724,0.32350242,109510.0,109500.0,0.00370247]
[1748001379179,0.78304124,109510.0,109500.0,0.00370247]
[1748001379391,0.87256275,109510.0,109500.0,0.00370247]
[1748001379599,0.78304124,109510.0,109500.0,0.00370247]
[1748001380036,0.82314124,109510.0,109500.0,0.00370247]
[1748001380974,0.81314124,109510.0,109500.0,0.00370247]
[1748001381200,0.32350242,109510.0,109500.0,0.00370247]
[1748001381659,0.42350242,109510.0,109500.0,0.00370247]
[1748001381901,0.93465444,109510.0,109500.0,0.00370247]
[1748001382126,0.52985647,109510.0,109500.0,0.00370247]
[1748001382372,0.98439529,109510.0,109500.0,0.00370247]
[1748001382601,0.23238607,109460.0,109450.0,0.0201]
[1748001382836,0.29053163,109460.0,109450.0,0.0201]
[1748001383811,0.33863163,109460.0,109450.0,0.0201]
[1748001384052,0.82097045,109460.0,109450.0,0.02025347]
[1748001384273,0.84586535,109460.0,109450.0,0.02025347]
[1748001384728,0.39632653,109460.0,109450.0,0.02025347]
[1748001384976,0.84586535,109460.0,109450.0,0.02025347]
[1748001385242,0.93538686,109460.0,109450.0,0.02025347]
[1748001385462,0.84686535,109460.0,109450.0,0.02025347]
[1748001385684,0.78917045,109460.0,109450.0,0.02025347]
[1748001385891,0.78817045,109460.0,109450.0,0.02025347]
[1748001386099,0.34863163,109460.0,109450.0,0.02025347]
[1748001386313,0.32463163,109460.0,109450.0,0.02025347]
[1748001387021,0.87369196,109460.0,109450.0,0.02025347]
[1748001387477,0.95092771,109460.0,109450.0,0.02025347]
[1748001388894,0.95092771,109460.0,109420.0,0.014276]
[1748001388895,0.20104116,109430.0,109420.0,0.014276]
[1748001389110,0.20104116,109430.0,109420.0,0.00051187]
[1748001389111,0.29058672,109430.0,109420.0,0.00051187]
[1748001389332,0.78546639,109430.0,109420.0,0.00051187]
[1748001389766,0.79046639,109430.0,109420.0,0.00051187]
[1748001389995,0.90784319,109430.0,109420.0,0.00051187]
[1748001390197,0.90884319,109430.0,109420.0,0.00051187]
[1748001390403,0.90384319,109430.0,109420.0,0.00051187]
[1748001390844,0.93404319,109430.0,109420.0,0.00051187]
[1748001391829,0.20116985,109360.0,109350.0,0.03275187]
[1748001392058,0.08954556,109360.0,109350.0,0.74237106]
[1748001392285,0.27427694,109400.0,109380.0,0.34]
[1748001392286,0.18456086,109390.0,109380.0,0.34]
[1748001392532,0.27240901,109390.0,109380.0,0.34]
[1748001393705,0.28151905,109390.0,109380.0,0.55314878]
[1748001393931,0.28151905,109390.0,109380.0,1.06172808]
[1748001393932,0.10782751,109390.0,109380.0,1.06172808]
[1748001394168,0.01828095,109400.0,109390.0,0.21024097]
[1748001394399,0.10038332,109400.0,109390.0,0.65014103]
[1748001394611,0.0365613,109400.0,109390.0,0.67756481]
[1748001394817,0.03825871,109400.0,109390.0,0.47452381]
[1748001395035,0.22107447,109400.0,109390.0,0.94522162]
[1748001395275,0.21023688,109400.0,109390.0,0.43438997]
[1748001395499,0.21023688,109400.0,109390.0,0.43454344]
[1748001395726,0.21023688,109400.0,109390.0,0.87494075]
[1748001396160,0.20109662,109400.0,109390.0,1.18622278]
[1748001396373,0.20109662,109400.0,109390.0,1.18822278]
[1748001396831,0.20109662,109400.0,109390.0,0.73868404]
[1748001397268,0.19195611,109400.0,109390.0,0.72954253]
[1748001397486,0.18281535,109400.0,109390.0,1.19736446]
[1748001397703,0.2010963,109400.0,109390.0,1.19736446]
[1748001397930,0.18282875,109420.0,109410.0,0.03]
[1748001398137,0.27237431,109420.0,109410.0,0.03]
[1748001398573,0.27237431,109420.0,109410.0,0.37]
[1748001399261,0.27337431,109420.0,109410.0,0.37]
[1748001400627,0.27337431,109420.0,109410.0,0.34]
[1748001400628,0.34653723,109420.0,109410.0,0.34]
[1748001400848,0.2010963,109400.0,109390.0,0.03315347]
[1748001401069,0.2010963,109400.0,109390.0,0.03115347]
[1748001401070,0.29064186,109400.0,109390.0,0.03115347]
[1748001401296,0.2010963,109400.0,109390.0,0.03115347]
[1748001401512,0.2010963,109400.0,109390.0,1.46276629]
[1748001401730,0.2010963,109400.0,109390.0,0.73406147]
[1748001402173,0.2010963,109400.0,109390.0,0.66446347]
[1748001402387,0.2010963,109400.0,109390.0,0.62846547]
[1748001402827,0.2010963,109400.0,109390.0,0.49686547]
[1748001403262,0.29064186,109400.0,109390.0,0.03115347]
[1748001403942,0.29064186,109400.0,109390.0,0.37115347]
[1748001404619,0.29064186,109400.0,109390.0,0.03115347]
[1748001404832,0.36380478,109400.0,109390.0,0.00015347]
[1748001405472,0.39600478,109400.0,109390.0,0.00015347]
[1748001405913,0.41600478,109400.0,109390.0,0.00015347]
[1748001406589,0.41900478,109400.0,109390.0,0.00015347]
[1748001407021,0.20115145,109370.0,109360.0,0.04444427]
[1748001407247,0.29069701,109370.0,109360.0,0.04453795]
[1748001407681,0.29069701,109370.0,109360.0,0.01123795]
[1748001408114,0.29069701,109370.0,109360.0,9.368e-05]
[1748001409283,0.29069701,109370.0,109360.0,0.8224325]
[1748001409498,0.20115145,109370.0,109360.0,1.8766685]
[1748001409718,0.20115145,109370.0,109360.0,1.16163268]
[1748001409719,0.20415145,109370.0,109360.0,1.16163268]
[1748001409934,0.20063902,109370.0,109360.0,0.64316368]
[1748001410153,0.19763902,109370.0,109360.0,0.78159368]
[1748001410381,0.19763902,109370.0,109360.0,0.81189368]
[1748001410608,0.19200835,109370.0,109360.0,0.9947759]
[1748001410828,0.20115145,109370.0,109360.0,1.2614325]
[1748001411042,0.20115145,109370.0,109360.0,9.368e-05]
[1748001411043,0.3290985,109370.0,109360.0,9.368e-05]
[1748001411276,0.29069701,109370.0,109360.0,9.368e-05]
[1748001411973,0.29169701,109370.0,109360.0,9.368e-05]
[1748001412468,0.29069701,109370.0,109360.0,9.368e-05]
[1748001412705,0.32589701,109370.0,109360.0,9.368e-05]
[1748001412944,0.42995937,109370.0,109360.0,9.368e-05]
[1748001413161,0.83677668,109370.0,109360.0,9.368e-05]
[1748001413385,0.86266776,109370.0,109360.0,9.368e-05]
[1748001413822,0.34089701,109370.0,109360.0,9.368e-05]
[1748001414038,0.79743583,109370.0,109360.0,9.368e-05]
[1748001414486,0.32289701,109370.0,109360.0,9.368e-05]
[1748001415362,0.32689701,109370.0,109360.0,9.368e-05]
[1748001416027,0.32289701,109370.0,109360.0,9.368e-05]
[1748001416266,0.29569701,109370.0,109360.0,9.368e-05]
[1748001416920,0.32799701,109370.0,109360.0,9.368e-05]
[1748001417343,0.77753583,109370.0,109360.0,9.368e-05]
[1748001417560,0.32799701,109370.0,109360.0,9.368e-05]
[1748001417997,0.94022026,109370.0,109360.0,9.368e-05]
[1748001418223,1.03246111,109370.0,109360.0,9.368e-05]
[1748001418434,0.34299701,109370.0,109360.0,9.368e-05]
[1748001418655,0.80253583,109370.0,109360.0,9.368e-05]
[1748001419521,0.80207668,109370.0,109360.0,9.368e-05]
[1748001419952,0.80707668,109370.0,109360.0,9.368e-05]
[1748001420187,0.79707668,109370.0,109360.0,9.368e-05]
[1748001420400,0.91919819,109370.0,109360.0,9.368e-05]
[1748001420647,0.91419819,109370.0,109360.0,9.368e-05]
[1748001420861,0.00914812,109310.0,109300.0,0.0318]
[1748001421088,0.28335696,109310.0,109300.0,0.03231177]
[1748001421314,0.28165955,109310.0,109300.0,0.43656077]
[1748001421549,0.31375955,109310.0,109300.0,0.43656077]
[1748001421763,0.31375955,109310.0,109300.0,0.44505825]
[1748001422388,0.28165955,109310.0,109300.0,0.44505825]
[1748001422816,0.28165955,109310.0,109300.0,0.81755825]
[1748001423031,0.28465955,109310.0,109300.0,0.80906077]
[1748001423282,0.28465955,109310.0,109300.0,0.77656077]
[1748001423495,0.28165955,109310.0,109300.0,0.80906077]
[1748001423925,0.08954556,109310.0,109300.0,1.01948975]
[1748001424144,0.01829064,109340.0,109330.0,0.53206551]
[1748001424358,0.29244961,109340.0,109330.0,0.371]
[1748001424578,0.2907522,109340.0,109330.0,0.021493]
[1748001424793,0.10783653,109340.0,109330.0,0.65396422]
[1748001425009,0.21033301,109350.0,109340.0,0.18291567]
[1748001425227,0.29987857,109350.0,109340.0,0.67480027]
[1748001425438,0.10783419,109350.0,109340.0,1.07049882]
[1748001425658,0.2907338,109350.0,109340.0,0.0332]
[1748001425874,0.20122505,109330.0,109320.0,0.44953882]
[1748001426084,0.2012622,109310.0,109300.0,0.45063882]
[1748001426300,0.2012622,109310.0,109300.0,0.32472377]
[1748001426524,0.2012622,109310.0,109300.0,0.00161177]
[1748001426738,0.28780776,109310.0,109300.0,0.00161177]
[1748001427605,0.39367068,109310.0,109300.0,0.00161177]
[1748001427852,0.40367068,109310.0,109300.0,0.00161177]
[1748001428072,0.28780776,109310.0,109300.0,0.00161177]
[1748001428314,0.28780776,109310.0,109300.0,0.00361177]
[1748001428744,0.28780776,109310.0,109300.0,0.03231177]
[1748001429170,0.29080776,109310.0,109300.0,0.00161177]
[1748001429611,0.44334796,109310.0,109300.0,0.00161177]
[1748001430258,0.86576353,109310.0,109300.0,0.00161177]
[1748001430483,0.93666353,109310.0,109300.0,0.00161177]
[1748001430709,0.20714915,109290.0,109280.0,0.00016]
[1748001430959,0.84073235,109290.0,109280.0,0.00016]
[1748001431191,0.94479471,109290.0,109280.0,0.00016]
[1748001431422,1.33479471,109290.0,109280.0,0.00016]
[1748001431636,1.33064491,109290.0,109280.0,0.00016]
[1748001431871,0.22587639,109270.0,109260.0,0.0001]
[1748001432082,0.73559667,109270.0,109260.0,0.0001]
[1748001432316,0.75067417,109270.0,109260.0,0.0001]
[1748001432528,0.74559667,109270.0,109260.0,0.0001]
[1748001432740,0.33772195,109270.0,109260.0,0.0001]
[1748001432958,0.3331811,109270.0,109260.0,0.0001]
[1748001433175,0.3331811,109270.0,109260.0,0.00015118]
[1748001433392,0.3231811,109270.0,109260.0,0.00015118]
[1748001433609,0.45846515,109270.0,109260.0,0.00015118]
[1748001433827,0.73105582,109270.0,109260.0,0.00015118]
[1748001434046,0.3646811,109270.0,109260.0,0.00015118]
[1748001434275,0.34772195,109270.0,109260.0,0.00015118]
[1748001434489,0.34272195,109270.0,109260.0,0.00015118]
[1748001434938,0.19223709,109240.0,109230.0,0.06403114]
[1748001435157,0.19223709,109240.0,109230.0,0.07254354]
[1748001435375,0.28178265,109240.0,109230.0,0.07254354]
[1748001435836,0.25178265,109240.0,109230.0,0.07254354]
[1748001436100,0.26093663,109240.0,109230.0,0.06408232]
[1748001436981,0.26093663,109240.0,109230.0,0.06508232]
[1748001437204,0.26093663,109240.0,109230.0,0.06258232]
[1748001438331,0.26093663,109240.0,109230.0,0.03238232]
[1748001439043,0.26093663,109240.0,109230.0,0.07193412]
[1748001439937,0.26093663,109240.0,109230.0,0.06348232]
[1748001440391,0.26093663,109240.0,109230.0,0.40348232]
[1748001440628,0.10785252,109240.0,109230.0,1.15264054]
[1748001440848,0.01830688,109240.0,109230.0,0.76476598]
[1748001441064,0.18503285,109270.0,109260.0,0.34]
[1748001441299,0.27457841,109270.0,109260.0,0.9614768]
[1748001441500,0.27457841,109270.0,109260.0,0.81087472]
[1748001441715,0.20139082,109240.0,109230.0,0.03338232]
[1748001441938,0.59926554,109240.0,109230.0,0.03238232]
[1748001442372,0.1922547,109230.0,109220.0,0.0021]
[1748001442627,0.67967498,109230.0,109220.0,0.00225343]
[1748001442835,0.28180026,109230.0,109220.0,0.00225343]
[1748001443044,0.31390026,109230.0,109220.0,0.00225343]
[1748001443284,0.28080026,109230.0,109220.0,0.00225343]
[1748001443935,0.28080026,109230.0,109220.0,0.03275343]
[1748001444389,0.289955,109230.0,109220.0,0.37275343]
[1748001444606,0.20040944,109230.0,109220.0,0.37275343]
[1748001444825,0.292955,109230.0,109220.0,0.37275343]
[1748001445322,0.289955,109230.0,109220.0,0.37275343]
[1748001445560,0.291955,109230.0,109220.0,0.37275343]
[1748001445791,0.291955,109230.0,109220.0,0.40535343]
[1748001446241,0.20240944,109230.0,109220.0,1.0138116]
[1748001446470,0.02946455,109230.0,109220.0,1.0138116]
[1748001446714,0.02946455,109230.0,109220.0,0.41450926]
[1748001446715,0.21256443,109230.0,109220.0,0.41450926]
[1748001446952,0.29295525,109230.0,109220.0,0.03275343]
[1748001448093,0.02030939,109230.0,109220.0,0.23418114]
[1748001448307,0.02030939,109230.0,109220.0,0.03275343]
[1748001448308,0.23087315,109230.0,109220.0,0.03275343]
[1748001448518,0.21256375,109230.0,109220.0,0.66285602]
[1748001448729,0.02946387,109230.0,109220.0,0.66285619]
[1748001448964,0.002,109230.0,109220.0,1.25957684]
[1748001449258,0.002,109270.0,109260.0,0.58310586]
[1748001449467,0.002,109270.0,109260.0,2.74566158]
[1748001449677,0.002,109270.0,109260.0,2.83520714]
[1748001450135,0.01829431,109320.0,109310.0,0.53211416]
[1748001450351,0.2561565,109310.0,109300.0,0.37]
[1748001450583,0.34570206,109310.0,109300.0,0.37]
[1748001451032,0.27253914,109310.0,109300.0,0.37]
[1748001451260,0.27253914,109310.0,109300.0,0.76787472]
[1748001451484,0.27253914,109310.0,109280.0,0.0322]
[1748001451485,0.18299935,109290.0,109280.0,0.0322]
[1748001451729,0.27254491,109290.0,109280.0,0.0322]
[1748001451915,0.01830118,109280.0,109270.0,0.95310757]
[1748001452123,0.21216549,109280.0,109270.0,0.97141059]
[1748001452343,0.21046808,109280.0,109270.0,1.51277259]
[1748001452555,0.21046808,109280.0,109270.0,0.0639]
[1748001452556,0.20131753,109280.0,109270.0,0.0639]
[1748001452769,0.19931753,109280.0,109270.0,0.0322]
[1748001453014,0.18299695,109300.0,109290.0,0.34]
[1748001453235,0.27305261,109300.0,109290.0,0.3701]
[1748001453891,0.27298875,109300.0,109290.0,0.3701]
[1748001454336,0.27298875,109300.0,109290.0,0.0301]
[1748001454547,0.27298875,109300.0,109290.0,0.3701]
[1748001454762,0.27298875,109300.0,109270.0,0.25233723]
[1748001454763,0.27298875,109300.0,109270.0,0.39887472]
[1748001454992,0.27298875,109300.0,109250.0,0.0309]
[1748001454993,0.1830496,109260.0,109250.0,0.0309]
[1748001455452,0.18306636,109250.0,109240.0,0.0329]
[1748001455689,0.29091796,109250.0,109240.0,0.0329]
[1748001456110,0.29091796,109250.0,109240.0,0.62301181]
[1748001456331,0.28176507,109250.0,109240.0,0.77077472]
[1748001456558,0.28176507,109250.0,109240.0,0.43092815]
[1748001456765,0.28176507,109250.0,109240.0,0.03305343]
[1748001457021,0.28176507,109250.0,109240.0,0.43092815]
[1748001457453,0.28176507,109250.0,109240.0,0.03305343]
[1748001457666,0.28176507,109250.0,109240.0,0.43102815]
[1748001458092,0.28176507,109250.0,109240.0,0.77302815]
[1748001458341,0.00915189,109260.0,109250.0,0.01830637]
[1748001458557,0.20136343,109270.0,109260.0,0.3725]
[1748001458768,0.29090899,109270.0,109260.0,0.77037472]
[1748001458995,0.21048693,109270.0,109260.0,1.69473832]
[1748001459212,0.18293309,109300.0,109290.0,0.53214923]
[1748001459420,0.28162778,109300.0,109290.0,0.76817472]
[1748001459630,0.19208222,109300.0,109290.0,0.76817472]
[1748001459843,0.19208222,109300.0,109290.0,0.3703]
[1748001460056,0.28162778,109300.0,109290.0,0.3703]
[1748001460280,0.19208222,109300.0,109290.0,0.76817472]
[1748001460493,0.19259232,109300.0,109290.0,0.76817472]
[1748001460706,0.28213788,109300.0,109290.0,0.73787472]
[1748001460947,0.19259232,109300.0,109290.0,0.77107472]
[1748001461377,0.20131711,109280.0,109270.0,0.3732]
[1748001461594,0.19220191,109260.0,109250.0,0.43107472]
[1748001461816,0.28174747,109260.0,109250.0,0.43107472]
[1748001462029,0.20135413,109260.0,109250.0,1.42096831]
[1748001462254,0.1830161,109280.0,109240.0,0.2139773]
[1748001462472,0.53232513,109190.0,109180.0,0.0144657]
[1748001462691,0.19232513,109190.0,109180.0,0.0144657]
[1748001462916,0.19232513,109190.0,109170.0,0.02900203]
[1748001462917,0.19234274,109180.0,109170.0,0.42900203]
[1748001463337,0.3131883,109180.0,109170.0,0.03801858]
[1748001464024,0.3231883,109180.0,109170.0,0.03801858]
[1748001464258,0.3131883,109180.0,109170.0,0.03801858]
[1748001464706,0.3131883,109180.0,109170.0,0.0295138]
[1748001464970,0.73106302,109180.0,109170.0,0.0295138]
[1748001465191,0.3431883,109180.0,109170.0,0.0295138]
[1748001465407,0.81267241,109180.0,109170.0,0.00051177]
[1748001465617,0.24306036,109170.0,109140.0,0.0001]
[1748001465827,0.33260592,109170.0,109140.0,0.0001]
[1748001466034,0.33760592,109170.0,109140.0,0.0001]
[1748001466468,0.3839125,109170.0,109140.0,0.0001]
[1748001466696,0.78178722,109170.0,109140.0,0.0001]
[1748001466921,0.24915689,109150.0,109140.0,0.0001]
[1748001467140,0.33870245,109150.0,109140.0,0.0001]
[1748001467360,0.32870245,109150.0,109140.0,0.0001]
[1748001467573,0.32370245,109150.0,109140.0,0.0001]
[1748001468026,0.32870245,109150.0,109140.0,0.0001]
[1748001468214,0.32370245,109150.0,109140.0,0.0001]
[1748001469064,0.29110245,109150.0,109140.0,0.0001]
[1748001469269,0.29110245,109150.0,109140.0,0.0302]
[1748001469902,0.29910245,109150.0,109140.0,0.0011]
[1748001470107,0.34653587,109150.0,109140.0,0.0011]
[1748001470314,0.29110245,109150.0,109140.0,0.0001]
[1748001470537,0.32130245,109150.0,109140.0,0.0001]
[1748001470737,0.32630245,109150.0,109140.0,0.0001]
[1748001471223,0.72917717,109150.0,109140.0,0.0001]
[1748001471435,0.19251907,109080.0,109070.0,0.42959505]
[1748001471645,0.28206463,109080.0,109070.0,0.321838]
[1748001471870,0.19253672,109070.0,109060.0,0.0001]
[1748001472083,0.28208228,109070.0,109060.0,0.00852407]
[1748001472730,0.28259113,109070.0,109060.0,0.00852407]
[1748001472944,0.09005441,109070.0,109060.0,0.43759879]
[1748001473163,0.28775913,109070.0,109060.0,0.74639879]
[1748001473363,0.28775913,109070.0,109060.0,0.34852407]
[1748001473567,0.28775913,109070.0,109060.0,0.76072385]
[1748001473786,0.02750375,109070.0,109060.0,0.980785]
[1748001473996,0.20168246,109090.0,109080.0,0.34]
[1748001474202,0.29122802,109090.0,109080.0,0.73787472]
[1748001474409,0.29122802,109090.0,109080.0,0.34]
[1748001474623,0.09871154,109090.0,109080.0,1.6100871]
[1748001474850,0.00916489,109110.0,109100.0,0.18330895]
[1748001475055,0.29287375,109110.0,109100.0,0.281934]
[1748001475266,0.29117634,109110.0,109100.0,0.67933872]
[1748001475494,0.29117634,109110.0,109100.0,0.0317]
[1748001475705,0.20164934,109100.0,109090.0,0.62207615]
[1748001475915,0.01832952,109110.0,109100.0,0.18331805]
[1748001476140,0.29287465,109110.0,109100.0,0.97202448]
[1748001476370,0.29117724,109110.0,109100.0,1.01204642]
[1748001476588,0.29117724,109110.0,109100.0,0.3489637]
[1748001476589,0.28201252,109110.0,109100.0,0.3489637]
[1748001476797,0.28201252,109110.0,109100.0,0.74683842]
[1748001477005,0.28201252,109110.0,109100.0,0.93814542]
[1748001477210,0.19248378,109100.0,109090.0,0.39802815]
[1748001477414,0.28202934,109100.0,109090.0,0.67783015]
[1748001477626,0.28102934,109100.0,109090.0,0.60093015]
[1748001477836,0.18430199,109110.0,109100.0,0.27391473]
[1748001477837,0.01016447,109110.0,109100.0,0.27391473]
[1748001478076,0.01932885,109110.0,109100.0,1.58863945]
[1748001478266,0.18331434,109140.0,109130.0,0.23329419]
[1748001478267,0.01832398,109140.0,109130.0,0.23329419]
[1748001478485,0.29281867,109140.0,109130.0,0.3717]
[1748001478702,0.29112126,109140.0,109130.0,0.34]
[1748001478928,0.29112126,109140.0,109110.0,0.46227472]
[1748001478929,0.2016123,109120.0,109110.0,0.46227472]
[1748001479151,0.2016123,109120.0,109110.0,0.34]
[1748001479152,0.29115786,109120.0,109110.0,0.34]
[1748001479399,0.20163095,109110.0,109100.0,0.01431789]
[1748001479605,0.20163095,109110.0,109100.0,0.69971104]
[1748001479814,0.20163095,109110.0,109100.0,0.56761104]
[1748001480047,0.29117651,109110.0,109100.0,0.01447132]